bitfinex/quotes_BTCUSD_20240607
["timestamp","ask_amount","ask_price","bid_price","bid_amount"]
[1717762344916,0.34527893,71848.0,71847.0,0.41534203]
[1717762345326,0.34527893,71848.0,71847.0,0.42834203]
[1717762345749,0.34527893,71848.0,71847.0,0.40834203]
[1717762345959,0.34527893,71848.0,71847.0,0.42834203]
[1717762346345,0.34527893,71848.0,71847.0,0.39434203]
[1717762346580,0.34527893,71848.0,71847.0,0.38134203]
[1717762346750,0.34527893,71848.0,71847.0,0.19434203]
[1717762346956,0.34527893,71848.0,71847.0,0.20734203]
[1717762347584,0.34527893,71848.0,71847.0,0.19434203]
[1717762347780,0.34527893,71848.0,71847.0,0.39434203]
[1717762347996,0.34527893,71848.0,71847.0,0.42734203]
[1717762348199,0.34527893,71848.0,71847.0,0.41434203]
[1717762348395,0.34527893,71848.0,71847.0,0.40134203]
[1717762349375,0.34527893,71848.0,71847.0,0.18134203]
[1717762349958,0.34527893,71848.0,71847.0,0.1221902]
[1717762350158,0.34527893,71848.0,71847.0,0.1361902]
[1717762350375,0.34527893,71848.0,71847.0,0.1221902]
[1717762350594,0.34527893,71848.0,71847.0,0.1091902]
[1717762350787,0.34527893,71848.0,71847.0,0.3361902]
[1717762350986,0.25237893,71848.0,71847.0,0.3361902]
[1717762351389,0.25237893,71848.0,71847.0,0.3231902]
[1717762351590,0.25237893,71848.0,71847.0,0.3091902]
[1717762351771,0.25237893,71848.0,71847.0,0.3221902]
[1717762352139,0.25237893,71848.0,71847.0,0.3561902]
[1717762352554,0.25237893,71848.0,71847.0,0.42834203]
[1717762353490,0.25237893,71848.0,71847.0,0.41534203]
[1717762353934,0.25237893,71848.0,71847.0,0.42834203]
[1717762354153,0.25237893,71848.0,71847.0,0.41434203]
[1717762354332,0.25237893,71848.0,71847.0,0.42834203]
[1717762354494,0.25237893,71848.0,71847.0,0.41534203]
[1717762354697,0.25237893,71848.0,71847.0,0.41434203]
[1717762355143,0.25237893,71848.0,71847.0,0.51034203]
[1717762355350,0.25237893,71848.0,71847.0,0.77674203]
[1717762356415,0.25237893,71848.0,71847.0,0.91592603]
[1717762356833,0.25237893,71848.0,71847.0,0.90292603]
[1717762357236,0.25237893,71848.0,71847.0,0.91592603]
[1717762357887,0.25237893,71848.0,71847.0,0.90292603]
[1717762358439,0.25237893,71848.0,71847.0,0.2219902]
[1717762358628,0.25237893,71848.0,71847.0,0.4359902]
[1717762358789,0.25237893,71848.0,71847.0,0.4229902]
[1717762358991,0.25237893,71848.0,71847.0,0.4289902]
[1717762359461,0.25237893,71848.0,71847.0,0.4429902]
[1717762359660,0.25237893,71848.0,71847.0,0.4289902]
[1717762359979,0.25237893,71848.0,71847.0,0.4229902]
[1717762360200,0.25237893,71848.0,71847.0,0.4429902]
[1717762360405,0.25237893,71848.0,71847.0,0.2229902]
[1717762360600,0.25237893,71848.0,71847.0,0.4229902]
[1717762360982,0.25237893,71848.0,71847.0,0.4359902]
[1717762361878,0.25237893,71848.0,71847.0,0.4229902]
[1717762362126,0.25237893,71848.0,71847.0,0.2364902]
[1717762362332,0.25237893,71848.0,71847.0,0.2494902]
[1717762364275,0.39887893,71848.0,71847.0,0.2494902]
[1717762365428,0.39887893,71848.0,71847.0,0.1494902]
[1717762365659,0.63757893,71848.0,71847.0,0.1494902]
[1717762366096,0.63757893,71848.0,71847.0,0.1403]
[1717762366239,0.63757893,71848.0,71847.0,0.1263]
[1717762366668,0.63757893,71848.0,71847.0,0.1293]
[1717762367671,0.63757893,71848.0,71847.0,0.1163]
[1717762368073,0.63757893,71848.0,71847.0,0.1193]
[1717762368499,0.63757893,71848.0,71847.0,0.1163]
[1717762368670,0.63757893,71848.0,71847.0,0.1173]
[1717762369105,0.63757893,71848.0,71847.0,0.1213]
[1717762369476,0.63757893,71848.0,71847.0,0.13045371]
[1717762370088,0.80527893,71848.0,71847.0,0.12645371]
[1717762370516,0.80527893,71848.0,71847.0,0.1173]
[1717762371092,0.80527893,71848.0,71847.0,0.12644486]
[1717762371501,0.80527893,71848.0,71847.0,0.12244486]
[1717762371845,0.80527893,71848.0,71847.0,0.22644486]
[1717762372186,0.80527893,71848.0,71847.0,0.23044486]
[1717762372500,0.80527893,71848.0,71847.0,0.22244486]
[1717762372700,0.80527893,71848.0,71847.0,0.22644486]
[1717762372980,0.80527893,71848.0,71847.0,0.23044486]
[1717762373191,0.80527893,71848.0,71847.0,0.22244486]
[1717762373392,0.80527893,71848.0,71847.0,0.22744486]
[1717762373665,0.80527893,71848.0,71847.0,0.23244486]
[1717762374218,0.80527893,71848.0,71847.0,0.22744486]
[1717762375009,0.80527893,71848.0,71847.0,0.22244486]
[1717762375837,0.80527893,71848.0,71847.0,0.22544486]
[1717762376898,0.80527893,71848.0,71847.0,0.22244486]
[1717762377717,0.64767893,71848.0,71847.0,0.12244486]
[1717762377916,0.72957893,71848.0,71847.0,0.1133]
[1717762379751,0.25237893,71848.0,71847.0,0.44245356]
[1717762381356,0.25237893,71848.0,71847.0,0.45145356]
[1717762382013,0.25237893,71848.0,71847.0,0.52360539]
[1717762382237,0.25237893,71848.0,71847.0,0.62360539]
[1717762382445,0.25237893,71848.0,71847.0,0.73360539]
[1717762382647,0.25237893,71848.0,71847.0,0.87278939]
[1717762382874,0.25237893,71848.0,71847.0,0.86278939]
[1717762383330,0.25237893,71848.0,71847.0,0.87178939]
[1717762383789,0.25237893,71848.0,71847.0,0.86278939]
[1717762384446,0.25237893,71848.0,71847.0,0.86378939]
[1717762384633,0.25237893,71848.0,71847.0,1.15204353]
[1717762384854,0.25237893,71848.0,71847.0,1.11088939]
[1717762385217,0.25237893,71848.0,71847.0,1.22677476]
[1717762385417,0.25237893,71848.0,71847.0,1.21277476]
[1717762385820,0.25237893,71848.0,71847.0,1.11088939]
[1717762386228,0.25237893,71848.0,71847.0,1.12388939]
[1717762387445,0.25237893,71848.0,71847.0,1.10988939]
[1717762387817,0.25237893,71848.0,71847.0,1.12388939]
[1717762389484,0.25237893,71848.0,71847.0,1.20615593]
[1717762391979,0.25237893,71848.0,71847.0,1.19615593]
[1717762392187,0.25237893,71848.0,71847.0,1.11388939]
[1717762393281,0.25237893,71848.0,71847.0,1.12388939]
[1717762395372,0.25237893,71848.0,71847.0,1.18555947]
[1717762397375,0.25237893,71848.0,71847.0,1.18650547]
[1717762397990,0.25323893,71848.0,71847.0,1.18650547]
[1717762398420,0.10882,71848.0,71847.0,1.76624347]
[1717762398795,0.10882,71848.0,71847.0,1.70457339]
[1717762399198,0.10882,71848.0,71847.0,1.69157339]
[1717762399653,0.10882,71848.0,71847.0,1.70457339]
[1717762399887,0.10882,71848.0,71847.0,1.80736903]
[1717762400104,0.10882,71848.0,71847.0,1.79436903]
[1717762400301,0.10882,71848.0,71847.0,1.69157339]
[1717762400544,0.10882,71848.0,71847.0,1.70457339]
[1717762400681,0.10882,71848.0,71847.0,1.90657339]
[1717762401483,0.10882,71848.0,71847.0,1.89257339]
[1717762401689,0.10882,71848.0,71847.0,1.89357339]
[1717762401885,0.10882,71848.0,71847.0,1.99636903]
[1717762402103,0.10882,71848.0,71847.0,1.99536903]
[1717762402311,0.10882,71848.0,71847.0,1.70457339]
[1717762402513,0.10882,71848.0,71847.0,1.89357339]
[1717762402720,0.10882,71848.0,71847.0,1.99636903]
[1717762402948,0.10882,71848.0,71847.0,1.90657339]
[1717762403916,0.10882,71848.0,71847.0,2.00936903]
[1717762404067,0.10882,71848.0,71847.0,1.90657339]
[1717762404270,0.10882,71848.0,71847.0,2.2875987]
[1717762404471,0.10882,71848.0,71847.0,3.34793639]
[1717762404680,0.10882,71848.0,71847.0,3.49848711]
[1717762404887,0.10882,71848.0,71847.0,3.90736554]
[1717762405286,0.10882,71848.0,71847.0,3.89436554]
[1717762405506,0.10882,71848.0,71847.0,3.91111865]
[1717762405784,0.10882,71848.0,71847.0,3.91011865]
[1717762406162,0.10882,71848.0,71847.0,3.91111865]
[1717762406367,0.10882,71848.0,71847.0,3.89711865]
[1717762406541,0.10882,71848.0,71847.0,3.91011865]
[1717762406764,0.10882,71848.0,71847.0,4.0334553]
[1717762407345,0.10882,71848.0,71847.0,3.50148683]
[1717762408152,0.10882,71848.0,71847.0,3.99593793]
[1717762408367,0.10882,71848.0,71847.0,4.13290011]
[1717762408574,0.10882,71848.0,71847.0,4.02286913]
[1717762408949,0.00863,71856.0,71855.0,1.93559683]
[1717762409165,0.00863,71856.0,71855.0,2.16749606]
[1717762409374,0.00863,71856.0,71855.0,2.45479732]
[1717762409650,0.00863,71856.0,71855.0,2.45227649]
[1717762409834,0.00863,71856.0,71855.0,5.63483942]
[1717762410049,0.002,71874.0,71869.0,1.63296183]
[1717762410262,0.002,71874.0,71869.0,1.55396183]
[1717762410481,0.002,71874.0,71869.0,1.5628427]
[1717762411328,0.002,71874.0,71869.0,1.2845587]
[1717762411542,0.19506893,71870.0,71869.0,0.3810327]
[1717762411769,0.19506893,71870.0,71869.0,0.5810327]
[1717762411986,0.27576893,71870.0,71869.0,0.3810327]
[1717762412203,0.43256893,71870.0,71869.0,0.3810327]
[1717762412409,0.43256893,71870.0,71869.0,0.22288087]
[1717762412621,0.60026893,71870.0,71869.0,0.20888087]
[1717762413028,0.43256893,71870.0,71869.0,0.23588087]
[1717762413345,0.43256893,71870.0,71869.0,0.5280327]
[1717762413576,0.43256893,71870.0,71869.0,0.5150327]
[1717762414204,0.19506893,71870.0,71869.0,0.6150327]
[1717762414407,0.19506893,71870.0,71869.0,0.7401747]
[1717762414845,0.19506893,71870.0,71869.0,0.7541747]
[1717762415054,0.19506893,71870.0,71869.0,0.7401747]
[1717762415461,0.19506893,71870.0,71869.0,0.7541747]
[1717762415690,0.19506893,71870.0,71869.0,0.7531747]
[1717762416157,0.19506893,71870.0,71869.0,0.7541747]
[1717762416581,0.19506893,71870.0,71869.0,0.7671747]
[1717762417629,0.05065,71870.0,71869.0,0.7531747]
[1717762417844,0.05065,71870.0,71869.0,0.7761747]
[1717762418062,0.05065,71870.0,71869.0,0.7901747]
[1717762418271,0.05065,71870.0,71869.0,0.7631747]
[1717762418683,0.05065,71870.0,71869.0,0.7901747]
[1717762419208,0.05065,71870.0,71869.0,0.7631747]
[1717762419412,0.05065,71870.0,71869.0,0.7771747]
[1717762419582,0.19506893,71870.0,71869.0,0.7671747]
[1717762420887,0.19506893,71870.0,71869.0,0.7531747]
[1717762421290,0.19506893,71870.0,71869.0,0.7541747]
[1717762421652,0.19506893,71870.0,71869.0,0.7671747]
[1717762421855,0.19506893,71870.0,71869.0,0.7771747]
[1717762422962,0.05065,71870.0,71869.0,0.7771747]
[1717762423816,0.05065,71870.0,71869.0,1.0554587]
[1717762424053,0.05065,71870.0,71869.0,1.0784587]
[1717762425051,0.05065,71870.0,71869.0,1.0684587]
[1717762426084,0.05065,71870.0,71869.0,1.0784587]
[1717762426313,0.05065,71870.0,71869.0,1.0684587]
[1717762426525,0.05065,71870.0,71869.0,1.0784587]
[1717762429411,0.05065,71870.0,71869.0,1.0684587]
[1717762430456,0.19506893,71870.0,71869.0,0.4471747]
[1717762430660,0.19506893,71870.0,71869.0,0.7671747]
[1717762432939,0.19506893,71870.0,71869.0,0.76701974]
[1717762433568,0.05065,71870.0,71869.0,1.12180374]
[1717762433797,0.05065,71870.0,71869.0,1.13180374]
[1717762434649,0.05065,71870.0,71869.0,1.05530374]
[1717762434854,0.05065,71870.0,71869.0,1.50708774]
[1717762435259,0.05065,71870.0,71869.0,1.54812499]
[1717762436533,0.05065,71870.0,71869.0,1.58328774]
[1717762436912,0.05065,71870.0,71869.0,2.16969731]
[1717762437107,0.05065,71870.0,71869.0,2.27229044]
[1717762437291,0.05065,71870.0,71869.0,2.16969731]
[1717762437706,0.05065,71870.0,71869.0,2.15569731]
[1717762438264,0.05065,71870.0,71869.0,2.85769731]
[1717762438421,0.05065,71870.0,71869.0,2.84369731]
[1717762438631,0.05065,71870.0,71869.0,2.85669731]
[1717762438836,0.05065,71870.0,71869.0,3.79440431]
[1717762439041,0.05065,71870.0,71869.0,3.78140431]
[1717762439594,0.05065,71870.0,71869.0,4.48050566]
[1717762439741,0.05065,71870.0,71869.0,4.34339391]
[1717762439941,0.002,71874.0,71873.0,1.67808983]
[1717762440146,0.002,71874.0,71873.0,2.19123433]
[1717762440345,0.002,71874.0,71873.0,2.19996025]
[1717762440567,0.002,71874.0,71873.0,4.67444325]
[1717762440781,0.002,71874.0,71873.0,6.64631967]
[1717762440985,0.002,71874.0,71873.0,5.93723667]
[1717762442288,0.002,71874.0,71873.0,5.95123667]
[1717762442488,0.002,71874.0,71873.0,4.99792699]
[1717762442688,0.002,71874.0,71873.0,4.29252699]
[1717762442888,0.002,71874.0,71873.0,4.30552699]
[1717762443141,0.002,71874.0,71873.0,3.86783075]
[1717762443658,0.002,71874.0,71873.0,2.89777275]
[1717762444238,0.002,71874.0,71873.0,3.09977275]
[1717762444614,0.002,71874.0,71873.0,3.20583806]
[1717762444817,0.002,71874.0,71873.0,3.49443576]
[1717762445384,0.002,71874.0,71873.0,3.91299077]
[1717762445585,0.002,71874.0,71873.0,3.91199077]
[1717762445937,0.002,71874.0,71873.0,3.92599077]
[1717762446102,0.002,71874.0,71873.0,3.95743276]
[1717762446683,0.002,71874.0,71873.0,4.10185169]
[1717762446890,0.01150302,71886.0,71885.0,1.25210683]
[1717762447092,0.01150302,71886.0,71885.0,2.07732454]
[1717762447264,0.01150302,71886.0,71885.0,2.11751733]
[1717762447473,0.01150302,71886.0,71885.0,2.01489732]
[1717762447909,0.01150302,71886.0,71885.0,1.81289732]
[1717762448486,0.01150302,71886.0,71885.0,1.52429962]
[1717762448810,0.01150302,71886.0,71885.0,1.81285703]
[1717762449195,0.01150302,71886.0,71885.0,2.01485703]
[1717762449395,0.01150302,71886.0,71885.0,2.02885703]
[1717762449590,0.01150302,71886.0,71885.0,2.06197693]
[1717762449817,0.01150302,71886.0,71885.0,2.07497693]
[1717762451163,0.01150302,71886.0,71885.0,1.87297693]
[1717762451412,0.01150302,71886.0,71885.0,1.69957693]
[1717762451623,0.09160302,71886.0,71885.0,1.64513494]
[1717762452051,0.09160302,71886.0,71885.0,1.67741367]
[1717762452466,0.09160302,71886.0,71885.0,1.38885626]
[1717762452702,0.23602195,71886.0,71885.0,0.67399787]
[1717762452907,0.39642195,71886.0,71885.0,0.32426283]
[1717762453081,0.39642195,71886.0,71885.0,0.33826283]
[1717762453288,0.39642195,71886.0,71885.0,0.65826283]
[1717762453486,0.39642195,71886.0,71885.0,0.92348483]
[1717762453865,0.39642195,71886.0,71885.0,0.93648483]
[1717762454103,0.39642195,71886.0,71885.0,1.03648483]
[1717762454309,0.39642195,71886.0,71885.0,1.02348483]
[1717762454687,0.39642195,71886.0,71885.0,1.03648483]
[1717762454890,0.39642195,71886.0,71885.0,1.02248483]
[1717762455329,0.39642195,71886.0,71885.0,1.03648483]
[1717762457624,0.39642195,71886.0,71885.0,0.71648483]
[1717762457843,0.39642195,71886.0,71885.0,1.03648483]
[1717762459801,0.39642195,71886.0,71885.0,1.01648483]
[1717762460002,0.39642195,71886.0,71885.0,0.73826283]
[1717762460219,0.39642195,71886.0,71885.0,0.466111]
[1717762460464,0.39642195,71886.0,71885.0,0.127]
[1717762460665,0.39642195,71886.0,71885.0,0.027]
[1717762461374,0.39642195,71886.0,71885.0,0.014]
[1717762461582,0.0775,71883.0,71880.0,0.2]
[1717762461797,0.0775,71880.0,71879.0,0.10016747]
[1717762462005,0.38621893,71880.0,71879.0,0.20016747]
[1717762462381,0.38621893,71880.0,71879.0,0.10016747]
[1717762462711,0.38621893,71880.0,71879.0,0.20016747]
[1717762463614,0.38621893,71880.0,71879.0,0.55228947]
[1717762463820,0.38621893,71880.0,71879.0,0.35228947]
[1717762464047,0.38621893,71880.0,71879.0,0.36428947]
[1717762464241,0.38621893,71880.0,71879.0,0.56428947]
[1717762464442,0.38621893,71880.0,71879.0,0.55228947]
[1717762464645,0.38621893,71880.0,71879.0,0.56228947]
[1717762464849,0.38621893,71880.0,71879.0,0.26428947]
[1717762465090,0.38621893,71880.0,71879.0,0.01216747]
[1717762466056,0.38621893,71880.0,71879.0,0.02416747]
[1717762466255,0.38621893,71880.0,71879.0,0.01216747]
[1717762466485,0.38621893,71880.0,71879.0,0.00016747]
[1717762466616,0.38707893,71880.0,71879.0,0.02316747]
[1717762467370,0.38707893,71880.0,71879.0,0.01116747]
[1717762467734,0.38707893,71880.0,71879.0,0.02116747]
[1717762468146,0.38707893,71880.0,71879.0,0.20016747]
[1717762468555,0.38707893,71880.0,71879.0,0.20816747]
[1717762468752,0.38707893,71880.0,71879.0,0.00816747]
[1717762468975,0.38707893,71880.0,71879.0,0.20816747]
[1717762469180,0.38707893,71880.0,71879.0,0.21616747]
[1717762469554,0.38707893,71880.0,71879.0,0.20016747]
[1717762469808,0.38707893,71880.0,71879.0,0.22016747]
[1717762470036,0.38707893,71880.0,71879.0,0.37828947]
[1717762470244,0.38707893,71880.0,71879.0,0.35828947]
[1717762470453,0.38707893,71880.0,71879.0,0.37028947]
[1717762470962,0.38707893,71880.0,71879.0,0.38028947]
[1717762471417,0.38707893,71880.0,71879.0,0.14928947]
[1717762471596,0.38707893,71880.0,71879.0,0.34928947]
[1717762471794,0.38707893,71880.0,71879.0,0.38028947]
[1717762471995,0.01150302,71886.0,71885.0,0.359111]
[1717762472203,0.15592195,71886.0,71885.0,0.339111]
[1717762473270,0.15592195,71886.0,71885.0,0.351111]
[1717762473469,0.15592195,71886.0,71885.0,0.363111]
[1717762473701,0.15592195,71886.0,71885.0,0.45526283]
[1717762474062,0.01150302,71886.0,71885.0,0.44326283]
[1717762474239,0.01150302,71886.0,71885.0,0.55526283]
[1717762474940,0.01150302,71886.0,71885.0,0.54326283]
[1717762475114,0.01150302,71886.0,71885.0,0.55526283]
[1717762475331,0.01150302,71886.0,71885.0,0.83348483]
[1717762476325,0.01150302,71886.0,71885.0,0.80948483]
[1717762476729,0.01150302,71886.0,71885.0,0.53726283]
[1717762476933,0.01150302,71886.0,71885.0,0.55726283]
[1717762477332,0.01150302,71886.0,71885.0,0.54426283]
[1717762477555,0.15592195,71886.0,71885.0,0.55726283]
[1717762478168,0.15592195,71886.0,71885.0,0.54426283]
[1717762478345,0.15592195,71886.0,71885.0,0.55826283]
[1717762480027,0.15592195,71886.0,71885.0,0.55806463]
[1717762480655,0.23902195,71886.0,71885.0,0.55806463]
[1717762480855,0.15592195,71886.0,71885.0,0.55806463]
[1717762482572,0.15592195,71886.0,71885.0,0.53806463]
[1717762482771,0.15592195,71886.0,71885.0,0.4659128]
[1717762482978,0.31642195,71886.0,71885.0,0.4659128]
[1717762483580,0.31642195,71886.0,71885.0,0.4859128]
[1717762483830,0.31642195,71886.0,71885.0,0.027]
[1717762484052,0.39632195,71886.0,71885.0,0.027]
[1717762486125,0.37745523,71886.0,71885.0,0.027]
[1717762487679,0.37745523,71886.0,71885.0,0.227]
[1717762488286,0.13705523,71886.0,71885.0,0.247]
[1717762488647,0.13705523,71886.0,71885.0,0.31915183]
[1717762489298,0.13705523,71886.0,71885.0,0.45826283]
[1717762490644,0.13705523,71886.0,71885.0,0.43826283]
[1717762491451,0.13705523,71886.0,71885.0,0.58806283]
[1717762496893,0.13705523,71886.0,71885.0,0.38806283]
[1717762497126,0.13705523,71886.0,71885.0,0.315911]
[1717762497280,0.21925523,71886.0,71885.0,0.315911]
[1717762497482,0.37315523,71886.0,71885.0,0.315911]
[1717762498374,0.37315523,71886.0,71885.0,0.1768]
[1717762499143,0.36953443,71886.0,71885.0,0.027]
[1717762500331,0.37039443,71886.0,71885.0,0.027]
[1717762502192,0.14527893,71886.0,71885.0,0.013]
[1717762502397,0.14527893,71886.0,71885.0,0.44426283]
[1717762502616,0.14527893,71886.0,71885.0,0.43626283]
[1717762502840,0.14527893,71886.0,71885.0,0.44126283]
[1717762503043,0.00086,71886.0,71885.0,0.44126283]
[1717762503457,0.00086,71886.0,71885.0,0.43126283]
[1717762503660,0.00086,71886.0,71885.0,0.81398483]
[1717762503862,0.00086,71886.0,71885.0,0.81698483]
[1717762504077,0.00086,71886.0,71885.0,1.29120683]
[1717762504284,0.00086,71886.0,71885.0,1.31711193]
[1717762504718,0.00086,71886.0,71885.0,1.49261193]
[1717762505526,0.00086,71886.0,71885.0,1.50661193]
[1717762505678,0.00086,71886.0,71885.0,1.51961193]
[1717762505882,0.00086,71886.0,71885.0,1.50561193]
[1717762506311,0.00086,71886.0,71885.0,1.50661193]
[1717762506523,0.00086,71886.0,71885.0,1.49261193]
[1717762506671,0.00086,71886.0,71885.0,1.50561193]
[1717762506880,0.00086,71886.0,71885.0,1.51961193]
[1717762508306,0.00086,71886.0,71885.0,1.49661193]
[1717762508510,0.00086,71886.0,71885.0,1.48661193]
[1717762509003,0.00086,71886.0,71885.0,1.56878884]
[1717762509427,0.00086,71886.0,71885.0,1.48661193]
[1717762509807,0.00086,71886.0,71885.0,1.59932489]
[1717762510021,0.09144,71903.0,71885.0,1.59932489]
[1717762510022,0.01201497,71918.0,71911.0,0.39215183]
[1717762510232,0.01201497,71918.0,71911.0,0.91511693]
[1717762510437,0.01201497,71918.0,71911.0,1.33431271]
[1717762510665,0.01201497,71918.0,71911.0,1.73748736]
[1717762511090,0.01201497,71918.0,71911.0,1.63480041]
[1717762511292,0.01201497,71918.0,71911.0,2.05734034]
[1717762511498,0.01201497,71918.0,71911.0,2.09007763]
[1717762511699,0.01201497,71918.0,71911.0,2.29207763]
[1717762511986,0.01201497,71918.0,71911.0,2.39453912]
[1717762512202,0.01201497,71918.0,71911.0,2.19253912]
[1717762512383,0.01201497,71918.0,71911.0,2.29207763]
[1717762512524,0.01201497,71918.0,71911.0,3.40049097]
[1717762512729,0.01201497,71918.0,71911.0,3.50049097]
[1717762512941,0.01201497,71918.0,71911.0,3.72749097]
[1717762513144,0.01201497,71918.0,71911.0,3.64558263]
[1717762513342,24.98,71912.0,71911.0,3.61858263]
[1717762513706,24.98,71912.0,71911.0,2.46137234]
[1717762513910,24.98,71912.0,71911.0,2.49928951]
[1717762514080,24.98,71912.0,71911.0,2.68728951]
[1717762514282,24.98,71912.0,71911.0,3.05447752]
[1717762514421,24.98,71912.0,71911.0,3.03395195]
[1717762514834,24.98,71912.0,71911.0,3.02095195]
[1717762515079,24.98,71912.0,71911.0,2.9391823]
[1717762515775,24.98,71912.0,71911.0,3.02732244]
[1717762516234,24.98,71912.0,71911.0,3.03384846]
[1717762516450,24.98,71912.0,71911.0,3.01984846]
[1717762516916,24.98,71912.0,71911.0,3.02084846]
[1717762517417,24.98,71912.0,71911.0,3.03384846]
[1717762517663,24.98,71912.0,71911.0,2.9521823]
[1717762517870,24.98,71912.0,71911.0,3.03384846]
[1717762518483,24.98,71912.0,71911.0,2.9521823]
[1717762519909,24.38230371,71912.0,71911.0,3.2303033]
[1717762520121,23.05880952,71912.0,71911.0,3.20083044]
[1717762520334,21.6650223,71912.0,71911.0,4.20897921]
[1717762520542,21.6650223,71912.0,71911.0,9.13615216]
[1717762520701,21.6650223,71912.0,71911.0,8.06164425]
[1717762520903,21.6650223,71912.0,71911.0,7.88977264]
[1717762521136,21.6650223,71912.0,71911.0,8.57677264]
[1717762521368,21.6650223,71912.0,71911.0,8.45150729]
[1717762521581,21.6650223,71912.0,71911.0,7.63979172]
[1717762521710,21.6650223,71912.0,71911.0,7.50231972]
[1717762521910,21.6650223,71912.0,71911.0,6.9427223]
[1717762522313,21.6650223,71912.0,71911.0,6.9287223]
[1717762522767,21.6650223,71912.0,71911.0,6.9427223]
[1717762522899,21.6650223,71912.0,71911.0,6.9287223]
[1717762523109,21.6650223,71912.0,71911.0,6.9157223]
[1717762523363,21.6650223,71912.0,71911.0,6.9297223]
[1717762523577,21.6650223,71912.0,71911.0,6.9287223]
[1717762523981,21.6650223,71912.0,71911.0,6.9297223]
[1717762524177,21.6650223,71912.0,71911.0,6.6376013]
[1717762524566,21.6650223,71912.0,71911.0,5.57546031]
[1717762524719,21.6650223,71912.0,71911.0,4.25179674]
[1717762524917,21.6650223,71912.0,71911.0,3.49811596]
[1717762525087,21.6650223,71912.0,71911.0,3.45741734]
[1717762525726,21.6650223,71912.0,71911.0,3.47141734]
[1717762525941,21.6650223,71912.0,71911.0,3.45741734]
[1717762526178,21.6650223,71912.0,71911.0,3.63502038]
[1717762526348,21.6650223,71912.0,71911.0,3.62131804]
[1717762526689,21.6650223,71912.0,71911.0,3.64431804]
[1717762526951,21.6650223,71912.0,71911.0,3.59441734]
[1717762527162,21.6650223,71912.0,71911.0,3.6340947]
[1717762527387,21.6650223,71912.0,71911.0,3.4320947]
[1717762527607,21.6650223,71912.0,71911.0,3.4460947]
[1717762527818,21.6650223,71912.0,71911.0,2.88781934]
[1717762528067,21.6650223,71912.0,71911.0,2.72340041]
[1717762528283,21.6650223,71912.0,71911.0,1.78257483]
[1717762528979,21.6650223,71912.0,71911.0,1.20045383]
[1717762529441,21.7483223,71912.0,71911.0,0.70333283]
[1717762529700,21.7483223,71912.0,71911.0,0.88933283]
[1717762529902,21.7483223,71912.0,71911.0,0.92233283]
[1717762530110,21.7483223,71912.0,71911.0,0.93633283]
[1717762530323,21.7483223,71912.0,71911.0,0.90933283]
[1717762530714,21.7483223,71912.0,71911.0,0.93633283]
[1717762531237,21.7483223,71912.0,71911.0,0.92333283]
[1717762532080,21.7483223,71912.0,71911.0,0.90933283]
[1717762532290,21.7483223,71912.0,71911.0,0.78933283]
[1717762532526,21.9082223,71912.0,71911.0,0.80333283]
[1717762532725,21.9082223,71912.0,71911.0,0.81633283]
[1717762532935,21.9082223,71912.0,71911.0,0.56643283]
[1717762533141,22.05264123,71912.0,71911.0,0.294281]
[1717762533350,22.05264123,71912.0,71911.0,0.127]
[1717762533777,22.05264123,71912.0,71911.0,0.1484]
[1717762534185,22.05264123,71912.0,71911.0,0.1354]
[1717762534403,21.9082223,71912.0,71911.0,0.41855183]
[1717762534615,21.9082223,71912.0,71911.0,0.55761183]
[1717762534827,21.9082223,71912.0,71911.0,0.57761183]
[1717762535037,21.9082223,71912.0,71911.0,0.55761183]
[1717762535241,21.9082223,71912.0,71911.0,0.54361183]
[1717762535418,21.9082223,71912.0,71911.0,0.56361183]
[1717762535629,21.9082223,71912.0,71911.0,0.57161183]
[1717762535827,21.9082223,71912.0,71911.0,0.56061183]
[1717762536248,21.9082223,71912.0,71911.0,0.56961183]
[1717762536454,21.9082223,71912.0,71911.0,0.93973283]
[1717762536655,21.9082223,71912.0,71911.0,0.93073283]
[1717762536856,21.9082223,71912.0,71911.0,0.94473283]
[1717762537057,21.6650223,71912.0,71911.0,1.33585383]
[1717762537409,21.6650223,71912.0,71911.0,1.32185383]
[1717762537616,21.6650223,71912.0,71911.0,1.31885383]
[1717762538195,21.6650223,71912.0,71911.0,1.80997483]
[1717762538431,21.6650223,71912.0,71911.0,2.11749376]
[1717762538624,21.6650223,71912.0,71911.0,2.35639446]
[1717762539030,21.6650223,71912.0,71911.0,2.40259589]
[1717762539258,21.6650223,71912.0,71911.0,3.44813589]
[1717762539560,21.6650223,71912.0,71911.0,2.52181146]
[1717762539772,21.6650223,71912.0,71911.0,2.53581146]
[1717762539924,21.6650223,71912.0,71911.0,2.52181146]
[1717762540137,21.1650223,71912.0,71911.0,2.55601289]
[1717762540329,21.1650223,71912.0,71911.0,2.55701289]
[1717762540697,21.1650223,71912.0,71911.0,2.55601289]
[1717762541098,21.1650223,71912.0,71911.0,2.75801289]
[1717762541301,21.1650223,71912.0,71911.0,2.79869025]
[1717762541526,21.1650223,71912.0,71911.0,2.85801289]
[1717762541927,21.1650223,71912.0,71911.0,2.7191501]
[1717762542280,21.1650223,71912.0,71911.0,2.71815807]
[1717762542701,21.1650223,71912.0,71911.0,2.71715807]
[1717762542992,21.1650223,71912.0,71911.0,2.71815807]
[1717762543451,21.1650223,71912.0,71911.0,2.85801289]
[1717762543650,21.1650223,71912.0,71911.0,2.87201289]
[1717762543796,21.1650223,71912.0,71911.0,2.95341758]
[1717762544014,21.1650223,71912.0,71911.0,2.94041758]
[1717762544180,21.1650223,71912.0,71911.0,3.13713389]
[1717762544379,21.1650223,71912.0,71911.0,3.10293246]
[1717762544580,21.1650223,71912.0,71911.0,3.23888975]
[1717762544795,21.1650223,71912.0,71911.0,3.13713389]
[1717762545206,21.16485493,71912.0,71911.0,3.23888975]
[1717762545420,21.16485493,71912.0,71911.0,2.89723319]
[1717762545619,21.16485493,71912.0,71911.0,2.83613996]
[1717762545826,21.16485493,71912.0,71911.0,2.49675721]
[1717762546047,21.16485493,71912.0,71911.0,2.48375721]
[1717762546250,21.16485493,71912.0,71911.0,2.84422621]
[1717762546645,21.16485493,71912.0,71911.0,2.83022621]
[1717762546852,21.16485493,71912.0,71911.0,3.03223128]
[1717762547063,21.16485493,71912.0,71911.0,2.84423128]
[1717762547280,21.16485493,71912.0,71911.0,2.76768028]
[1717762547937,21.16485493,71912.0,71911.0,2.78806853]
[1717762548092,21.16485493,71912.0,71911.0,2.68606176]
[1717762549402,21.16485493,71912.0,71911.0,2.70006176]
[1717762549552,21.16485493,71912.0,71911.0,2.60006176]
[1717762549908,21.16485493,71912.0,71911.0,2.70226487]
[1717762550113,21.16485493,71912.0,71911.0,2.16752183]
[1717762550286,21.16485493,71912.0,71911.0,2.14901983]
[1717762551630,21.16485493,71912.0,71911.0,2.35101983]